fUST/lending_fUST_20240405
["ID","MTS","AMOUNT","RATE_DAILY","PERIOD"]
[321585036,1712327433107,-153.0,0.00042575,2]
[321585037,1712327433117,-153.0,0.00042575,2]
[321585038,1712327433127,-153.0,0.00042575,2]
[321585039,1712327433137,-153.0,0.00042575,2]
[321585040,1712327433147,-153.0,0.00042575,2]
[321585041,1712327433157,-153.0,0.00042575,2]
[321585042,1712327433166,-153.0,0.00042575,2]
[321585043,1712327433176,-153.0,0.000426,2]
[321585044,1712327433186,-153.0,0.000426,2]
[321585045,1712327433197,-153.0,0.000426,2]
[321585046,1712327433206,-202.171108,0.00042884,2]
[321585047,1712327433216,-202.171108,0.00042884,120]
[321585048,1712327433226,-400.75936359,0.00043,2]
[321585049,1712327433236,-1500.0,0.00043,2]
[321585050,1712327433245,-1312.59502038,0.00043,14]
[321585051,1712327433255,-161.27184453,0.00043295,3]
[321585052,1712327433265,-202.5506203,0.00043349,2]
[321585053,1712327433276,-202.5506203,0.00043349,2]
[321585054,1712327433286,-202.5506203,0.00043349,2]
[321585055,1712327433295,-153.0,0.00043349,2]
[321585056,1712327433306,-153.0,0.00043349,2]
[321585057,1712327433316,-13771.99398112,0.00043394,4]
[321585159,1712327438213,-1353.775,0.00043394,4]
[321586097,1712327446129,-161.27184453,0.00043295,3]
[321586099,1712327446139,-134.16214636,0.00043394,4]
[321586101,1712327446148,-364.35123334,0.00043731,31]
[321586103,1712327446158,-449.38825683,0.00043731,31]
[321586105,1712327446167,-1500.0,0.00043735,2]
[321586107,1712327446176,-297.49711539,0.00043833,4]
[321586109,1712327446186,-1716.66246447,0.00043833,4]
[321594495,1712328542566,-407.76045621,0.00034996,4]
[321594496,1712328542593,-3282.1579841,0.00034997,4]
[321594497,1712328542619,-400.0,0.00034997,2]
[321594498,1712328542646,-10313.60606582,0.00034998,4]
[321594499,1712328542671,-8397.34671262,0.00035,2]
[321594501,1712328566766,-394.2235008,0.000329,2]
[321594502,1712328566795,-394.2235008,0.000379,2]
[321594503,1712328566825,-560.0,0.00038497,3]
[321594504,1712328566856,-14446.6562531,0.00039207,2]
[321594505,1712328566888,-301.216898,0.00039763,2]
[321594506,1712328566917,-10934.6294309,0.00039863,2]
[321594507,1712328566946,-982.88345032,0.000399,2]
[321594508,1712328566986,-5433.6152053,0.0004,120]
[321594509,1712328567016,-169.713674,0.0004,2]
[321594594,1712328632281,-982.88345031,0.00040859,2]
[321594596,1712328632291,-166.666666,0.00041096,2]
[321594598,1712328632300,-1290.48299738,0.00041817,4]
[321594601,1712328632340,-2460.55469874,0.00041817,4]
[321594602,1712328632350,-982.88345031,0.00041818,2]
[321594603,1712328632360,-166.666666,0.00042058,2]
[321594604,1712328632370,-982.88345031,0.00042776,2]
[321594605,1712328632380,-282.82676597,0.00042956,4]
[321594606,1712328632390,-309.29081311,0.00043,2]
[321594607,1712328632400,-2000.0,0.00043,7]
[321594608,1712328632410,-2000.0,0.00043,2]
[321594609,1712328632420,-166.666666,0.00043019,2]
[321594610,1712328632430,-161.27184453,0.00043297,3]
[321594611,1712328632440,-2000.0,0.000435,7]
[321594612,1712328632450,-1640.64778037,0.000435,2]
[321594613,1712328632459,-153.0,0.00043562,2]
[321594614,1712328632470,-800.0,0.00043732,2]
[321594615,1712328632480,-2015.9135232,0.00043732,21]
[321594616,1712328632490,-1500.0,0.00043735,2]
[321594617,1712328632502,-982.88345031,0.00043735,2]
[321594618,1712328632512,-6000.0,0.000438,5]
[321594619,1712328632526,-2683.67527125,0.00043833,4]
[321594620,1712328632536,-1074.93210279,0.00043833,4]
[321594621,1712328632546,-155.02635448,0.00043833,4]
[321594622,1712328632557,-155.02635448,0.00043833,7]
[321594623,1712328632568,-1070.06031466,0.00043833,4]
[321594624,1712328632578,-248.69461106,0.00043833,4]
[321594625,1712328632588,-595.1551022,0.00043833,2]
[321594626,1712328632597,-252.90767751,0.00043833,2]
[321594627,1712328632607,-160.59215105,0.00043833,2]
[321594628,1712328632617,-12658.95322113,0.00043833,2]
[321594739,1712328638494,-276.76652358,0.00043833,2]
[321594742,1712328638503,-276.80075413,0.00043833,2]
[321594745,1712328638512,-5007.45800833,0.00043833,4]
[321594748,1712328638523,-195.42184891,0.00043833,4]
[321594751,1712328638533,-200.0,0.00043833,4]
[321594754,1712328638542,-278.0336955,0.00043833,4]
[321594757,1712328638551,-151.0,0.00043833,7]
[321594760,1712328638561,-151.0,0.00043833,7]
[321594763,1712328638570,-151.0,0.00043833,7]
[321594766,1712328638580,-151.0,0.00043833,7]
[321594769,1712328638589,-1871.966462,0.00043833,7]
[321594772,1712328638598,-1871.966462,0.00043833,7]
[321594775,1712328638607,-1871.966462,0.00043833,7]
[321594779,1712328638618,-1871.966462,0.00043833,7]
[321594782,1712328638627,-151.0,0.00043833,7]
[321594784,1712328638637,-151.0,0.00043833,7]
[321594787,1712328638646,-151.0,0.00043833,7]
[321594790,1712328638655,-151.0,0.00043833,7]
[321594794,1712328638665,-151.0,0.00043833,7]
[321594798,1712328638676,-151.0,0.00043833,7]
[321594800,1712328638685,-151.0,0.00043833,7]
[321594803,1712328638694,-151.0,0.00043833,7]
[321594806,1712328638703,-251.008626,0.00043833,7]
[321594809,1712328638712,-185.031876,0.00043833,7]
[321594812,1712328638720,-238.65015,0.00043833,7]
[321594815,1712328638730,-238.65015,0.00043833,7]
[321594818,1712328638739,-151.0,0.00043833,7]
[321594821,1712328638748,-151.0,0.00043833,7]
[321594824,1712328638758,-238.65015,0.00043833,7]
[321594827,1712328638767,-238.65015,0.00043833,7]
[321594829,1712328638776,-151.0,0.00043833,7]
[321594832,1712328638786,-151.0,0.00043833,7]
[321594835,1712328638795,-151.0,0.00043833,7]
[321594838,1712328638804,-262.077024,0.00043833,7]
[321594841,1712328638813,-151.0,0.00043833,7]
[321594844,1712328638822,-151.0,0.00043833,7]
[321594847,1712328638831,-222.535751,0.00043833,7]
[321594850,1712328638841,-282.55053323,0.00043834,4]
[321594852,1712328638851,-628.03,0.00043834,7]
[321594854,1712328638860,-628.03,0.00043834,7]
[321594856,1712328638870,-628.03,0.00043834,7]
[321594858,1712328638880,-628.03,0.00043834,7]
[321594861,1712328638890,-628.03,0.00043834,7]
[321594864,1712328638899,-628.03,0.00043834,7]
[321594867,1712328638910,-59828.76940552,0.00043835,5]
[321594877,1712328638955,-3173.25892991,0.00043835,5]
[321597903,1712328883352,16095.48132459,0.0002509,2]
[321597907,1712328917650,313.99586713,0.0002509,2]
[321597909,1712328928195,250.62065615,0.0002509,2]
[321597910,1712328933634,313.99586713,0.0002509,2]
[321597911,1712328944190,250.62065615,0.0002509,2]
[321597912,1712328953643,170.55153502,0.0002509,2]
[321597913,1712328960193,360.11979446,0.0002509,2]
[321597918,1712329078763,10000.0,0.00027,2]
[321597936,1712329177774,4681.95,0.00034619,30]
[321597958,1712329368944,1956.40534024,0.00034,30]
[321597982,1712329788922,-303.5526226,0.00032518,4]
[321597983,1712329788948,-150.0,0.00032519,2]
[321597984,1712329788982,-242.95734997,0.00033891,4]
[321597985,1712329789009,-400.0,0.00033898,2]
[321597986,1712329789038,-400.0,0.00033898,2]
[321597987,1712329789064,-1381.12762273,0.00033899,4]
[321597988,1712329789090,-1381.12762273,0.00033899,4]
[321597989,1712329789115,-1381.12762273,0.00033899,4]
[321597990,1712329789141,-1381.12762273,0.00033899,4]
[321597991,1712329789166,-1381.12762273,0.00033899,4]
[321597992,1712329789191,-1381.12762273,0.00033899,4]
[321597993,1712329789218,-1381.12762273,0.00033899,4]
[321597994,1712329789244,-156.24433992,0.000339,2]
[321597995,1712329789270,-196.730977,0.00033932,2]
[321597996,1712329789296,-651.6378345,0.00034,30]
[321597997,1712329789323,-1012.15143207,0.00034,4]
[321597998,1712329789350,-560.0,0.00037288,2]
[321597999,1712329789374,-150.0,0.00037519,2]
[321598000,1712329789401,-211.101045,0.00039646,120]
[321598001,1712329789427,-182.96331992,0.0004,31]
[321598114,1712329833023,-322.22828898,0.0004013,2]
[321598116,1712329833033,-166.666666,0.00041096,2]
[321598118,1712329833042,-1679.10950271,0.00041625,10]
[321598120,1712329833052,-1226.14554231,0.00041636,4]
[321598639,1712329838596,-551.83456817,0.00041636,4]
[321598642,1712329838614,-537.0,0.0004164,3]
[321598645,1712329838623,-938.90160613,0.00041641,4]
[321598647,1712329838633,-356.1388257,0.00041641,2]
[321598757,1712329843772,-182.96331992,0.0004,31]
[321598758,1712329843784,-412.77291896,0.00041641,2]
[321598782,1712329870299,-155.87410563,0.00035066,4]
[321598783,1712329870326,-906.16823429,0.0004,4]
[321598903,1712331032614,-277.66554283,0.00040873,4]
[321598904,1712331032624,-1435.88432358,0.00040874,4]
[321598905,1712331032634,-156.24433992,0.00040895,2]
[321598906,1712331032644,-372.51520567,0.00041,2]
[321598907,1712331032682,-1772.00479433,0.00041,2]
[321598908,1712331032692,-2000.0,0.00041,2]
[321598909,1712331032702,-166.666666,0.00041163,2]
[321598910,1712331032712,-182.96331992,0.00041641,31]
[321598911,1712331032722,-3967.15964084,0.00041641,120]
[321598912,1712331032733,-271.40992107,0.00041641,4]
[321598913,1712331032743,-4948.22818196,0.00041641,2]
[321598914,1712331032753,-168.840226,0.00041726,2]
[321598915,1712331032763,-224.099899,0.00041744,2]
[321598916,1712331032773,-331.5,0.0004177,2]
[321598917,1712331032783,-246.9749023,0.00041793,2]
[321598918,1712331032793,-166.666666,0.00042285,2]
[321598919,1712331032803,-155.47187932,0.00042956,4]
[321598920,1712331032813,-1500.0,0.00043,2]
[321598921,1712331032823,-153.0,0.00043022,2]
[321598922,1712331032832,-153.0,0.00043022,2]
[321598923,1712331032842,-153.0,0.00043022,2]
[321598924,1712331032851,-162.51127687,0.00043394,3]
[321598925,1712331032862,-1353.775,0.00043395,4]
[321598926,1712331032872,-166.666666,0.00043408,2]
[321598927,1712331032883,-1569.71170629,0.00043516,11]
[321598928,1712331032893,-306.0,0.00043616,2]
[321598929,1712331032903,-324.39405388,0.00043733,2]
[321598930,1712331032912,-324.39405384,0.00043734,2]
[321598931,1712331032922,-324.39405384,0.00043734,2]
[321598932,1712331032931,-324.39405384,0.00043735,2]
[321598933,1712331032940,-324.39405384,0.00043735,2]
[321598934,1712331032950,-1500.0,0.00043735,2]
[321598935,1712331032959,-150.0,0.000438,2]
[321598936,1712331032969,-500.0,0.00043832,2]
[321598937,1712331032979,-155.01705188,0.00043833,4]
[321598938,1712331032990,-1658.67124891,0.00043833,4]
[321598939,1712331032999,-155.40680754,0.00043833,4]
[321598940,1712331033009,-928.5776296,0.00043833,4]
[321598941,1712331033019,-280.51115178,0.00043833,4]
[321598942,1712331033028,-369.16586071,0.00043833,4]
[321598943,1712331033039,-216.20080466,0.00043833,4]
[321598944,1712331033049,-616.48766449,0.00043833,4]
[321598945,1712331033060,-155.37757037,0.00043833,4]
[321598946,1712331033070,-608.75435439,0.00043833,4]
[321598947,1712331033080,-173.99830069,0.00043833,4]
[321598948,1712331033090,-472.30961185,0.00043833,4]
[321598949,1712331033099,-1183.46472904,0.00043833,4]
[321598950,1712331033109,-214.91557177,0.00043833,4]
[321598951,1712331033118,-4780.73477708,0.00043833,4]
[321598952,1712331033128,-309.6903097,0.00043833,4]
[321598953,1712331033138,-5514.05569322,0.00043833,2]
[321598954,1712331033147,-331.41593695,0.00043833,4]
[321598955,1712331033157,-177.68590968,0.00043833,7]
[321598956,1712331033168,-5208.37596473,0.00043834,4]
[321598957,1712331033177,-155.02790502,0.00043834,4]
[321598958,1712331033187,-503.00233042,0.00043834,4]
[321598959,1712331033196,-3060.77552127,0.00043834,4]
[321598960,1712331033205,-602.56571959,0.00043834,31]
[321598961,1712331033215,-500.0,0.00043834,31]
[321598962,1712331033225,-195.73818873,0.00043834,31]
[321598963,1712331033236,-385.91779477,0.00043834,31]
[321598964,1712331033246,-552.15204204,0.00043834,31]
[321598965,1712331033255,-251.21,0.00043834,7]
[321598966,1712331033265,-251.21,0.00043834,7]
[321598967,1712331033275,-251.21,0.00043834,7]
[321598968,1712331033284,-251.21,0.00043834,7]
[321598969,1712331033294,-251.21,0.00043834,7]
[321598970,1712331033303,-251.21,0.00043834,7]
[321598971,1712331033313,-251.21,0.00043834,7]
[321598972,1712331033322,-251.21,0.00043834,7]
[321598973,1712331033331,-10648.48373,0.00043835,5]
[321599021,1712331038717,-1009.025,0.00043835,5]
[321601184,1712332238019,-166.666666,0.00041671,2]
[321601186,1712332238031,-201.689909,0.00042446,2]
[321601188,1712332238041,-27.42840459,0.00042733,2]
[321601191,1712332238057,-128.81593533,0.00042733,2]
[321601193,1712332238067,-166.666666,0.00042807,2]
[321601195,1712332238076,-9.51399569,0.00043,2]
[321601272,1712332240067,-1129.58668734,0.00043,2]
[321601277,1712332240117,-186.34696215,0.00043,2]
[321601286,1712332240190,-556.64681127,0.00043,2]
[321601619,1712332243155,-128.31611185,0.00043,2]
[321601621,1712332243164,-153.0,0.00043205,2]
[321601623,1712332243173,-153.0,0.00043205,2]
[321601625,1712332243182,-550.0,0.00043299,3]
[321601627,1712332243191,-405.1012406,0.000433,2]
[321601629,1712332243201,-153.0,0.000433,2]
[321601630,1712332243209,-153.0,0.000433,2]
[321601632,1712332243218,-202.5506203,0.000433,2]
[321601634,1712332243228,-153.0,0.000433,2]
[321601636,1712332243237,-306.0,0.000433,2]
[321601638,1712332243249,-153.0,0.000433,2]
[321601640,1712332243258,-202.5506203,0.000433,2]
[321601642,1712332243267,-153.0,0.000433,2]
[321601644,1712332243276,-153.0,0.000433,2]
[321601646,1712332243285,-55.34735607,0.000433,2]
[321601649,1712332243300,-147.20326423,0.000433,2]
[321601651,1712332243308,-153.0,0.000433,2]
[321601653,1712332243318,-162.51127687,0.00043394,3]
[321601655,1712332243327,-8944.15391678,0.00043395,4]
[321601950,1712332246044,-4827.84006434,0.00043395,4]
[321601952,1712332246054,-199.65342867,0.000435,5]
[321601954,1712332246064,-153.0,0.00043623,2]
[321601956,1712332246074,-153.0,0.00043623,2]
[321601958,1712332246083,-153.0,0.00043623,2]
[321601960,1712332246092,-153.0,0.00043623,2]
[321601962,1712332246101,-153.0,0.00043623,2]
[321601964,1712332246113,-153.0,0.00043623,2]
[321601966,1712332246123,-153.0,0.00043623,2]
[321601968,1712332246132,-153.0,0.00043623,2]
[321601970,1712332246141,-153.0,0.00043623,2]
[321601972,1712332246151,-1373.49774303,0.00043635,11]
[321601974,1712332246160,-9178.29142626,0.00043734,2]
[321601976,1712332246172,-5066.08248491,0.00043734,2]
[321601978,1712332246181,-416.68029966,0.00043735,2]
[321601980,1712332246190,-1500.0,0.00043735,2]
[321601982,1712332246201,-1002.14629279,0.0004375,2]
[321601984,1712332246210,-153.0,0.000438,2]
[321601987,1712332246221,-153.0,0.000438,2]
[321601989,1712332246233,-168.193016,0.000438,2]
[321601991,1712332246242,-1129.58668734,0.00043833,4]
[321601992,1712332246252,-473.84315323,0.00043833,4]
[321601995,1712332246264,-2143.35325583,0.00043833,4]
[321601997,1712332246274,-472.30961185,0.00043833,4]
[321601999,1712332246284,-179.60380204,0.00043834,4]
[321602001,1712332246294,-177.68130105,0.00043834,4]
[321602003,1712332246303,-298.17350945,0.00043834,31]
[321602005,1712332246313,-258.24245125,0.00043834,31]
[321602007,1712332246322,-165.39334062,0.00043834,31]
[321602009,1712332246331,-236.63658945,0.00043834,31]
[321602011,1712332246340,-167.48,0.00043834,7]
[321602013,1712332246349,-50759.55418078,0.00043835,5]
[321602015,1712332246358,-5834.1890893,0.00043835,4]
[321602017,1712332246368,-911.62761847,0.00043835,4]
[321602019,1712332246377,-182.96331992,0.00043835,31]
[321602021,1712332246387,-501.71311377,0.00043835,5]
[321602023,1712332246396,-500.0,0.00043835,5]
[321602025,1712332246406,-500.0,0.00043835,5]
[321602027,1712332246415,-500.0,0.00043835,5]
[321602029,1712332246424,-500.0,0.00043835,5]
[321602031,1712332246434,-503.30373975,0.00043835,5]
[321602033,1712332246443,-500.0,0.00043835,5]
[321602035,1712332246452,-500.0,0.00043835,5]
[321602037,1712332246462,-500.0,0.00043835,5]
[321602039,1712332246472,-500.0,0.00043835,5]
[321602041,1712332246481,-500.0,0.00043835,5]
[321602043,1712332246490,-153.956183,0.00043835,7]
[321602044,1712332246500,-500.0,0.00043835,5]
[321602047,1712332246514,-155.07598723,0.00043835,5]
[321602049,1712332246524,-500.81267653,0.00043835,5]
[321602050,1712332246535,-405.27120451,0.00043835,5]
[321602052,1712332246545,-500.0,0.00043835,5]
[321602054,1712332246555,-151.0,0.00043835,7]
[321602057,1712332246568,-151.0,0.00043835,7]
[321602059,1712332246577,-151.0,0.00043835,7]
[321602060,1712332246587,-151.0,0.00043835,7]
[321602062,1712332246596,-151.0,0.00043835,7]
[321602064,1712332246604,-152.308192,0.00043835,7]
[321602066,1712332246613,-500.0,0.00043835,5]
[321602068,1712332246623,-2971.22,0.00043835,5]
[321602070,1712332246632,-500.0,0.00043835,5]
[321602072,1712332246642,-500.0,0.00043835,5]
[321602074,1712332246651,-500.0,0.00043835,5]
[321602076,1712332246659,-500.0,0.00043835,5]
[321602078,1712332246668,-500.0,0.00043835,5]
[321602080,1712332246677,-500.0,0.00043835,5]
[321602082,1712332246687,-500.0,0.00043835,5]
[321602084,1712332246696,-500.0,0.00043835,5]
[321602086,1712332246705,-500.0,0.00043835,5]
[321602088,1712332246715,-152.91715,0.00043835,7]
[321602090,1712332246724,-500.0,0.00043835,5]
[321602092,1712332246733,-501.94390694,0.00043835,5]
[321602094,1712332246744,-500.0,0.00043835,5]
[321602096,1712332246753,-500.0,0.00043835,5]
[321602098,1712332246761,-151.0,0.00043835,7]
[321602100,1712332246771,-151.0,0.00043835,7]
[321602102,1712332246780,-151.0,0.00043835,7]
[321602104,1712332246789,-151.0,0.00043835,7]
[321602106,1712332246798,-151.0,0.00043835,7]
[321602108,1712332246808,-151.0,0.00043835,7]
[321602110,1712332246817,-151.0,0.00043835,7]
[321602112,1712332246826,-151.0,0.00043835,7]
[321602114,1712332246835,-151.0,0.00043835,7]
[321602125,1712332246844,-151.0,0.00043835,7]
[321602127,1712332246940,-151.0,0.00043835,7]
[321602129,1712332246949,-151.0,0.00043835,7]
[321602131,1712332246959,-255.651456,0.00043835,7]
[321602133,1712332246968,-786.45,0.00043835,5]
[321602135,1712332246979,-513.5757299,0.00043835,5]
[321602137,1712332246988,-503.7538856,0.00043835,5]
[321602139,1712332247000,-500.0,0.00043835,5]
[321602141,1712332247009,-506.28946276,0.00043835,5]
[321602143,1712332247023,-592.96352232,0.00043835,5]
[321602145,1712332247033,-500.0,0.00043835,5]
[321602148,1712332247043,-500.0,0.00043835,5]
[321602149,1712332247055,-439.49719991,0.00043835,5]
[321602152,1712332247066,-500.0,0.00043835,5]
[321602154,1712332247076,-639.69385496,0.00043835,5]
[321602156,1712332247088,-500.0,0.00043835,5]
[321602158,1712332247097,-500.0,0.00043835,5]
[321602160,1712332247107,-462.98328465,0.00043835,5]
[321602161,1712332247117,-500.0,0.00043835,5]
[321602163,1712332247129,-500.0,0.00043835,5]
[321602166,1712332247139,-505.02497917,0.00043835,5]
[321602167,1712332247148,-500.0,0.00043835,5]
[321602169,1712332247158,-500.0,0.00043835,5]
[321602172,1712332247167,-553.11515035,0.00043835,5]
[321602174,1712332247177,-500.0,0.00043835,5]
[321602175,1712332247187,-500.0,0.00043835,5]
[321602177,1712332247196,-557.8983909,0.00043835,5]
[321602179,1712332247206,-500.0,0.00043835,5]
[321602181,1712332247215,-500.0,0.00043835,5]
[321602183,1712332247224,-500.0,0.00043835,5]
[321602185,1712332247234,-500.0,0.00043835,5]
[321602187,1712332247245,-502.82656281,0.00043835,5]
[321602189,1712332247254,-500.0,0.00043835,5]
[321602191,1712332247263,-503.29431866,0.00043835,5]
[321602193,1712332247273,-500.0,0.00043835,5]
[321602196,1712332247283,-500.0,0.00043835,5]
[321602198,1712332247292,-500.0,0.00043835,5]
[321602199,1712332247301,-151.0,0.00043835,7]
[321602201,1712332247310,-151.0,0.00043835,7]
[321602203,1712332247319,-500.0,0.00043835,5]
[321602205,1712332247328,-288.467764,0.00043835,7]
[321602207,1712332247337,-1777.89,0.00043835,5]
[321602209,1712332247347,-500.75649508,0.00043835,5]
[321602211,1712332247356,-500.0,0.00043835,5]
[321602213,1712332247365,-500.0,0.00043835,5]
[321602215,1712332247374,-503.9547181,0.00043835,5]
[321602217,1712332247384,-501.57523464,0.00043835,5]
[321602219,1712332247393,-500.0,0.00043835,5]
[321602221,1712332247402,-500.0,0.00043835,2]
[321602223,1712332247411,-500.0,0.00043835,5]
[321602225,1712332247420,-501.5449309,0.00043835,5]
[321602226,1712332247429,-500.0,0.00043835,5]
[321602227,1712332247438,-500.0,0.00043835,5]
[321602228,1712332247447,-500.0,0.00043835,5]
[321602229,1712332247456,-503.37054861,0.00043835,5]
[321602230,1712332247466,-500.0,0.00043835,5]
[321602231,1712332247475,-500.0,0.00043835,5]
[321602232,1712332247484,-500.0,0.00043835,5]
[321602234,1712332247494,-312.19784353,0.00043835,5]
[321602236,1712332247503,-503.18163469,0.00043835,5]
[321602238,1712332247512,-500.0,0.00043835,5]
[321602240,1712332247521,-502.4452704,0.00043835,5]
[321602242,1712332247532,-503.12039216,0.00043835,5]
[321602244,1712332247542,-509.40720171,0.00043835,5]
[321602246,1712332247551,-500.0,0.00043835,5]
[321602248,1712332247560,-500.0,0.00043835,5]
[321602250,1712332247568,-261.00847733,0.00043835,5]
[321602252,1712332247577,-506.596657,0.00043835,5]
[321602254,1712332247587,-1001.91,0.00043835,5]
[321602256,1712332247596,-500.0,0.00043835,5]
[321602258,1712332247604,-151.0,0.00043835,7]
[321602260,1712332247613,-151.0,0.00043835,7]
[321602262,1712332247622,-151.0,0.00043835,7]
[321602264,1712332247631,-537.34301772,0.00043835,5]
[321602266,1712332247640,-151.0,0.00043835,7]
[321602268,1712332247649,-151.0,0.00043835,7]
[321602270,1712332247658,-151.0,0.00043835,7]
[321602272,1712332247667,-151.0,0.00043835,7]
[321602274,1712332247676,-603.76024405,0.00043835,5]
[321602275,1712332247685,-506.26006713,0.00043835,5]
[321602278,1712332247696,-500.0,0.00043835,5]
[321602279,1712332247706,-500.0,0.00043835,5]
[321602282,1712332247715,-2719.03,0.00043835,5]
[321602284,1712332247725,-505.51089623,0.00043835,5]
[321602286,1712332247734,-500.0,0.00043835,5]
[321602288,1712332247744,-307.51897264,0.00043835,5]
[321602289,1712332247753,-386.60332074,0.00043835,5]
[321602291,1712332247762,-500.0,0.00043835,5]
[321602294,1712332247771,-151.0,0.00043835,7]
[321602296,1712332247787,-155.588823,0.00043835,7]
[321602299,1712332247800,-151.0,0.00043835,7]
[321602301,1712332247814,-151.0,0.00043835,7]
[321602304,1712332247828,-506.05242412,0.00043835,5]
[321602306,1712332247840,-151.0,0.00043835,7]
[321602308,1712332247852,-185.685038,0.00043835,7]
[321602311,1712332247864,-500.0,0.00043835,5]
[321602313,1712332247878,-500.0,0.00043835,5]
[321602315,1712332247891,-500.0,0.00043835,5]
[321602318,1712332247904,-500.0,0.00043835,5]
[321602320,1712332247917,-500.0,0.00043835,5]
[321602322,1712332247928,-500.0,0.00043835,5]
[321602324,1712332247938,-500.0,0.00043835,5]
[321602327,1712332247952,-502.13067898,0.00043835,5]
[321602329,1712332247964,-514.06177178,0.00043835,5]
[321602332,1712332247977,-550.56537976,0.00043835,5]
[321602334,1712332247990,-500.0,0.00043835,5]
[321602337,1712332248005,-610.59454447,0.00043835,5]
[321602339,1712332248018,-500.0,0.00043835,5]
[321602341,1712332248033,-500.0,0.00043835,5]
[321602344,1712332248043,-3661.18,0.00043835,5]
[321602346,1712332248055,-500.0,0.00043835,5]
[321602348,1712332248070,-500.0,0.00043835,5]
[321602351,1712332248083,-500.72595541,0.00043835,5]
[321602353,1712332248096,-5695.02,0.00043835,5]
[321602355,1712332248110,-500.0,0.00043835,5]
[321602357,1712332248121,-500.0,0.00043835,5]
[321602360,1712332248134,-500.0,0.00043835,5]
[321602362,1712332248146,-504.15914635,0.00043835,5]
[321602364,1712332248158,-3329.5,0.00043835,5]
[321602367,1712332248171,-500.0,0.00043835,5]
[321602369,1712332248184,-500.0,0.00043835,5]
[321602372,1712332248197,-500.0,0.00043835,5]
[321602374,1712332248209,-3694.34,0.00043835,7]
[321602376,1712332248221,-500.0,0.00043835,5]
[321602379,1712332248233,-500.0,0.00043835,5]
[321602381,1712332248243,-501.13499179,0.00043835,5]
[321602383,1712332248255,-500.0,0.00043835,5]
[321602385,1712332248266,-500.0,0.00043835,5]
[321602388,1712332248279,-500.0,0.00043835,5]
[321602390,1712332248290,-500.0,0.00043835,5]
[321602392,1712332248301,-652.54,0.00043835,5]
[321602394,1712332248313,-555.32,0.00043835,5]
[321602397,1712332248324,-1074.52,0.00043835,5]
[321602399,1712332248333,-500.0,0.00043835,5]
[321602401,1712332248344,-500.0,0.00043835,5]
[321602403,1712332248354,-1269.68,0.00043835,5]
[321602405,1712332248365,-1510.68,0.00043835,5]
[321602407,1712332248375,-526.51,0.00043835,5]
[321602410,1712332248386,-829.54,0.00043835,5]
[321602412,1712332248397,-500.0,0.00043835,5]
[321602414,1712332248408,-500.0,0.00043835,5]
[321602416,1712332248419,-500.0,0.00043835,5]
[321602418,1712332248430,-500.0,0.00043835,5]
[321602421,1712332248440,-2988.44,0.00043835,5]
[321602423,1712332248451,-500.0,0.00043835,5]
[321602425,1712332248461,-244.91926,0.00043835,7]
[321602427,1712332248472,-500.0,0.00043835,5]
[321602429,1712332248483,-508.19184045,0.00043835,5]
[321602431,1712332248493,-861.46,0.00043835,5]
[321602434,1712332248505,-457.92587501,0.00043835,5]
[321602436,1712332248516,-8333.33,0.00043835,5]
[321602438,1712332248527,-502.2860714,0.00043835,5]
[321602440,1712332248538,-502.01270104,0.00043835,5]
[321602442,1712332248549,-501.89563018,0.00043835,5]